fUST/lending_fUST_20250621
["ID","MTS","AMOUNT","RATE_DAILY","PERIOD"]
[366846873,1750509953548,-500.0,0.0002224,2]
[366846874,1750509953571,-500.0,0.0002224,2]
[366846875,1750509953593,-500.0,0.0002224,2]
[366846876,1750509953615,-538.09651936,0.0002224,2]
[366846877,1750509953637,-500.0,0.0002224,2]
[366846878,1750509953658,-500.0,0.0002224,2]
[366846879,1750509953679,-500.0,0.0002224,2]
[366846880,1750509953699,-500.0,0.0002224,2]
[366846881,1750509953720,-500.0,0.0002224,2]
[366846882,1750509953741,-500.0,0.0002224,2]
[366846883,1750509953763,-500.0,0.0002224,2]
[366846884,1750509953784,-500.0,0.0002224,2]
[366846885,1750509953804,-202.38677504,0.0002224,2]
[366846886,1750509953825,-500.0,0.0002224,2]
[366846887,1750509953846,-254.66611912,0.0002224,2]
[366846888,1750509953868,-500.0,0.0002224,2]
[366846889,1750509953889,-500.0,0.0002224,2]
[366846890,1750509953912,-500.0,0.0002224,2]
[366846891,1750509953934,-500.0,0.0002224,2]
[366846892,1750509953957,-500.0,0.0002224,2]
[366846893,1750509953979,-500.0,0.0002224,2]
[366846894,1750509954002,-500.0,0.0002224,2]
[366846895,1750509954022,-500.0,0.0002224,2]
[366846896,1750509954045,-575.38336306,0.0002224,2]
[366846897,1750509954065,-500.0,0.0002224,2]
[366846898,1750509954087,-500.0,0.0002224,2]
[366846899,1750509954108,-500.0,0.0002224,2]
[366846900,1750509954129,-645.53321486,0.0002224,2]
[366846901,1750509954151,-500.0,0.0002224,2]
[366846902,1750509954171,-500.0,0.0002224,2]
[366846903,1750509954194,-500.0,0.0002224,2]
[366846904,1750509954217,-500.0,0.0002224,2]
[366846905,1750509954238,-500.0,0.0002224,2]
[366846906,1750509954260,-500.0,0.0002224,2]
[366846907,1750509954281,-500.0,0.0002224,2]
[366846908,1750509954301,-550.0,0.0002224,2]
[366846909,1750509954322,-500.0,0.0002224,2]
[366846910,1750509954343,-500.0,0.0002224,2]
[366846911,1750509954366,-500.0,0.0002224,2]
[366846912,1750509954386,-500.0,0.0002224,2]
[366846913,1750509954407,-528.2142236,0.0002224,2]
[366846914,1750509954429,-500.0,0.0002224,2]
[366846915,1750509954450,-500.0,0.0002224,2]
[366846916,1750509954472,-500.0,0.0002224,2]
[366846917,1750509954497,-500.0,0.0002224,2]
[366846918,1750509954521,-500.0,0.0002224,2]
[366846919,1750509954543,-339.80210193,0.0002224,2]
[366846920,1750509954565,-524.02436136,0.0002224,2]
[366846921,1750509954586,-500.0,0.0002224,2]
[366846922,1750509954611,-612.944717,0.0002224,2]
[366846923,1750509954634,-500.0,0.0002224,2]
[366846924,1750509954656,-500.0,0.0002224,2]
[366846925,1750509954680,-500.0,0.0002224,2]
[366846926,1750509954703,-500.0,0.0002224,2]
[366846927,1750509954725,-500.0,0.0002224,2]
[366846928,1750509954747,-500.0,0.0002224,2]
[366846929,1750509954771,-500.0,0.0002224,2]
[366846930,1750509954794,-500.0,0.0002224,2]
[366846931,1750509954815,-500.0,0.0002224,2]
[366846932,1750509954839,-500.0,0.0002224,2]
[366846933,1750509954863,-500.0,0.0002224,2]
[366846934,1750509954885,-500.0,0.0002224,2]
[366846935,1750509954908,-500.0,0.0002224,2]
[366846936,1750509954937,-500.0,0.0002224,2]
[366846937,1750509954960,-500.0,0.0002224,2]
[366846938,1750509954984,-500.0,0.0002224,2]
[366846939,1750509955006,-500.0,0.0002224,2]
[366846940,1750509955029,-500.0,0.0002224,2]
[366846941,1750509955052,-884.06708182,0.0002224,2]
[366846942,1750509955073,-500.0,0.0002224,2]
[366846943,1750509955095,-500.0,0.0002224,2]
[366846944,1750509955115,-212.2565636,0.0002224,2]
[366846945,1750509955136,-498.57868535,0.0002224,2]
[366846946,1750509955160,-973.37589926,0.0002224,2]
[366846947,1750509955182,-973.37589926,0.0002224,2]
[366846948,1750509955205,-973.37589926,0.0002224,2]
[366846949,1750509955228,-973.37589926,0.0002224,2]
[366846950,1750509955251,-973.37589926,0.0002224,2]
[366846951,1750509955274,-973.37589926,0.0002224,2]
[366846952,1750509955297,-973.37589926,0.0002224,2]
[366846953,1750509955320,-973.37589926,0.0002224,2]
[366846954,1750509955342,-500.0,0.0002224,2]
[366846955,1750509955363,-500.0,0.0002224,2]
[366846956,1750509955385,-500.0,0.0002224,2]
[366846957,1750509955407,-500.0,0.0002224,2]
[366846958,1750509955428,-500.0,0.0002224,2]
[366846959,1750509955451,-441.53925864,0.0002224,2]
[366846960,1750510050088,-468.79143084,0.00021637,2]
[366846961,1750510054075,-114.20271146,0.00021637,2]
[366846962,1750510054096,-300.0,0.00022239,2]
[366846963,1750510054116,-155.0,0.0002224,2]
[366846964,1750510054137,-300.0,0.00022242,2]
[366846965,1750510054158,-182.83702387,0.00022243,2]
[366846966,1750510054179,-593.31134466,0.00022243,2]
[366846967,1750510054215,-500.0,0.00022243,2]
[366846968,1750510054377,-190.25072929,0.00022243,2]
[366846969,1750510054400,-291.99507208,0.00022243,2]
[366846970,1750510054423,-500.0,0.00022243,2]
[366846971,1750510054446,-500.0,0.00022243,2]
[366846972,1750510054468,-173.93615543,0.00022243,2]
[366846973,1750510145070,-1617.0,0.00021235,2]
[366846974,1750510166332,-421.78430231,0.00021235,2]
[366846975,1750510166354,-4534.62864919,0.00021449,2]
[366847125,1750510232092,-1662.14503601,0.00021449,2]
[366847163,1750510232605,-219.6704922,0.0002156,2]
[366847164,1750510232615,-160.0,0.00022232,2]
[366847165,1750510232624,-424.93363889,0.00022232,2]
[366847166,1750510232634,-300.0,0.00022242,2]
[366847167,1750510232644,-1103.0,0.00022242,2]
[366847168,1750510232653,-1000.0,0.00022243,2]
[366847169,1750510232663,-615.48635245,0.00022243,2]
[366847170,1750510232672,-230.10342898,0.00022243,2]
[366847171,1750510232682,-326.06384457,0.00022243,2]
[366847172,1750510232692,-286.15370701,0.00022243,2]
[366847173,1750510232702,-500.0,0.00022243,2]
[366847174,1750510232712,-500.0,0.00022243,2]
[366847175,1750510232722,-500.0,0.00022243,2]
[366847176,1750510232731,-641.57000295,0.00022243,2]
[366847177,1750510232741,-500.0,0.00022243,2]
[366847178,1750510232751,-500.0,0.00022243,2]
[366847179,1750510232761,-500.0,0.00022243,2]
[366847180,1750510232771,-456.99385745,0.00022243,2]
[366847181,1750510232780,-185.46425462,0.00022243,2]
[366847182,1750510232790,-823.94218661,0.00022244,2]
[366847193,1750510237926,-7754.19595751,0.00022244,2]
[366847226,1750510238288,-58.96275268,0.00022244,2]
[366847228,1750510238300,-684.13106432,0.00022244,2]
[366847230,1750510238312,-468.55808915,0.00022244,2]
[366847233,1750510238323,-610.02460827,0.00022244,2]
[366847638,1750510244878,-2149.35900653,0.00022244,2]
[366847639,1750510244888,-160.0,0.00022244,2]
[366847640,1750510244898,-500.0,0.00022273,2]
[366847641,1750510244907,-500.0,0.00022273,2]
[366847642,1750510244917,-836.41202323,0.00022278,2]
[366847643,1750510244927,-846.23824438,0.00022278,2]
[366847644,1750510244938,-160.0,0.00022278,2]
[366847645,1750510244948,-213.55395994,0.00022278,2]
[366847646,1750510244958,-459.67097913,0.000227,2]
[366847647,1750510244967,-309.8421927,0.0002274,2]
[366847648,1750510244977,-354.5343632,0.0002274,2]
[366847649,1750510244987,-318.1612438,0.0002274,2]
[366847650,1750510244997,-992.3300726,0.0002274,2]
[366847651,1750510245007,-593.63837292,0.000228,3]
[366847653,1750510246040,-406.36162708,0.000228,3]
[366847654,1750510246050,-1000.0,0.000228,4]
[366847655,1750510246060,-704.28904986,0.000228,5]
[366847656,1750510246142,-295.71095014,0.000228,5]
[366847657,1750510246151,-245.91946122,0.000228,6]
[366847661,1750510540225,300.0,0.00024649,120]
[366847662,1750510596492,-281.645985,0.00020144,2]
[366847663,1750510596514,-146.354015,0.00020879,2]
[366847665,1750510637293,351.0,0.00024649,120]
[366847669,1750510913058,-1224.0,0.0002,2]
[366847670,1750511045710,1800.11,0.00024658,120]
[366847671,1750511072267,500.63,0.00024658,120]
[366847672,1750511097563,500.0,0.00024658,120]
[366847673,1750511226114,-1117.20827791,0.00019799,2]
[366847674,1750511226135,-2806.17486084,0.0002,2]
[366847696,1750511359089,-1960.0,0.00019999,2]
[366847697,1750511366619,-3040.0,0.00019999,2]
[366847698,1750511366641,-2600.66672813,0.0002,2]
[366847699,1750511366663,-28.18990587,0.00020201,2]
[366847717,1750511432317,-599.82892201,0.00019999,2]
[366847718,1750511432427,-4400.17107799,0.00019999,2]
[366847719,1750511432437,-157.39196531,0.00020101,2]
[366847720,1750511432447,-1731.5608429,0.00020201,2]
[366847721,1750511432456,-1223.6404766,0.00020852,2]
[366847722,1750511432466,-160.0,0.0002109,2]
[366847723,1750511432476,-252.503853,0.00021183,2]
[366847724,1750511432486,-157.39196531,0.0002181,2]
[366847725,1750511432496,-223.41,0.0002186,2]
[366847726,1750511432506,-402.21210673,0.00021889,2]
[366847727,1750511432516,-1200.0,0.00021897,2]
[366847728,1750511432526,-300.0,0.00021898,2]
[366847729,1750511432535,-300.0,0.00021898,2]
[366847730,1750511432545,-300.0,0.00021898,2]
[366847731,1750511432555,-300.0,0.00021898,2]
[366847732,1750511432565,-300.0,0.00021898,2]
[366847733,1750511432575,-3000.0,0.000219,2]
[366847734,1750511432585,-1423.13165343,0.000219,6]
[366847735,1750511432595,-3000.0,0.0002191,2]
[366847736,1750511432605,-500.0,0.00021915,2]
[366847737,1750511432614,-500.0,0.00021915,2]
[366847738,1750511432624,-649.70442443,0.00021915,2]
[366847739,1750511432634,-500.0,0.00021915,2]
[366847740,1750511432643,-500.0,0.00021915,2]
[366847741,1750511432653,-500.0,0.00021915,2]
[366847742,1750511432663,-510.45270717,0.00021915,2]
[366847743,1750511432673,-500.0,0.00021915,2]
[366847744,1750511432683,-500.0,0.00021915,2]
[366847745,1750511432692,-635.0045718,0.00021915,2]
[366847746,1750511432702,-500.0,0.00021915,2]
[366847747,1750511432712,-500.0,0.00021915,2]
[366847748,1750511432722,-500.0,0.00021915,2]
[366847749,1750511432732,-500.0,0.00021915,2]
[366847750,1750511432742,-316.44594799,0.00021915,2]
[366847751,1750511432752,-242.82936162,0.00021915,2]
[366847752,1750511432763,-500.0,0.00021915,2]
[366847753,1750511432775,-514.15700029,0.00021915,2]
[366847754,1750511432788,-500.0,0.00021915,2]
[366847755,1750511432799,-3000.0,0.0002192,2]
[366847756,1750511432809,-1000.0,0.00021927,2]
[366847757,1750511432819,-3000.0,0.0002193,2]
[366847758,1750511432828,-212.863,0.0002193,2]
[366847759,1750511432838,-4502.32254,0.0002194,2]
[366847760,1750511432847,-500.0,0.00021973,2]
[366847761,1750511432858,-501.97197342,0.00021973,2]
[366847762,1750511432869,-500.0,0.00021973,2]
[366847763,1750511432878,-428.80843973,0.00021973,2]
[366847764,1750511432888,-503.42492212,0.00021973,2]
[366847765,1750511432989,-505.8757016,0.00021973,2]
[366847766,1750511432999,-503.32843809,0.00021973,2]
[366847767,1750511433010,-500.0,0.00021973,2]
[366847768,1750511433020,-210.36,0.0002198,10]
[366847769,1750511433030,-210.36,0.0002198,10]
[366847770,1750511433039,-5688.75797149,0.00021986,2]
[366847771,1750511433049,-19523.23607524,0.00021986,2]
[366847772,1750511433059,-260.51832066,0.00021989,2]
[366847773,1750511433069,-299.98082406,0.0002199,2]
[366847774,1750511433109,-21543.73359671,0.0002199,2]
[366847775,1750511433119,-2000.0,0.00022,3]
[366847776,1750511433130,-175.0,0.00022,2]
[366847777,1750511433147,-168.0,0.00022027,2]
[366847778,1750511433156,-1423.13165332,0.00022038,6]
[366847779,1750511433166,-3122.052412,0.00022125,2]
[366847780,1750511433175,-1423.13165332,0.00022176,6]
[366847781,1750511433186,-500.0,0.00022224,7]
[366847782,1750511433195,-1000.0,0.00022224,2]
[366847783,1750511433205,-152.896342,0.00022224,7]
[366847784,1750511433215,-151.0,0.00022224,7]
[366847785,1750511433224,-151.0,0.00022224,7]
[366847786,1750511433234,-213.55395994,0.00022225,2]
[366847787,1750511433244,-12549.17366507,0.00022225,2]
[366847788,1750511433254,-160.0,0.00022225,2]
[366847789,1750511433264,-846.23824438,0.00022225,2]
[366847790,1750511433274,-160.0,0.00022225,2]
[366847791,1750511433284,-160.0,0.00022225,2]
[366847792,1750511433294,-160.0,0.00022225,2]
[366847793,1750511433303,-160.0,0.00022225,2]
[366847794,1750511433313,-160.0,0.00022225,2]
[366847795,1750511433323,-160.0,0.00022225,2]
[366847796,1750511433332,-151.0,0.00022225,2]
[366847797,1750511433342,-151.0,0.00022225,2]
[366847798,1750511433352,-151.0,0.00022225,2]
[366847799,1750511433361,-151.0,0.00022225,2]
[366847800,1750511433371,-151.0,0.00022225,2]
[366847801,1750511433381,-151.0,0.00022225,2]
[366847802,1750511433391,-500.0,0.00022225,2]
[366847803,1750511433400,-2122.0,0.00022225,2]
[366847804,1750511433410,-503.0,0.00022225,2]
[366847805,1750511433420,-500.0,0.00022225,2]
[366847806,1750511433430,-151.72053977,0.00022225,2]
[366847807,1750511433440,-151.0,0.00022225,2]
[366847808,1750511433450,-151.0,0.00022225,2]
[366847809,1750511433460,-151.0,0.00022225,2]
[366847810,1750511433470,-500.0,0.00022225,2]
[366847811,1750511433480,-151.0,0.00022225,2]
[366847812,1750511433489,-151.0,0.00022225,2]
[366847813,1750511433499,-151.0,0.00022225,2]
[366847814,1750511433510,-151.0,0.00022225,2]
[366847815,1750511433520,-206.49189023,0.00022225,2]
[366847816,1750511433529,-151.0,0.00022225,2]
[366847817,1750511433538,-151.0,0.00022225,2]
[366847818,1750511433548,-199.05133219,0.00022225,2]
[366847819,1750511433559,-151.0,0.00022225,2]
[366847820,1750511433569,-243.818317,0.00022225,2]
[366847821,1750511433579,-151.0,0.00022225,2]
[366847822,1750511433588,-836.41202323,0.00022243,2]
[366847823,1750511433597,-151.0,0.00022252,2]
[366847824,1750511433607,-151.0,0.00022252,2]
[366847825,1750511433617,-151.0,0.00022252,2]
[366847826,1750511433626,-500.0,0.00022252,2]
[366847827,1750511433635,-2122.0,0.00022252,2]
[366847828,1750511433644,-503.0,0.00022252,2]
[366847829,1750511433654,-501.01407172,0.00022252,2]
[366847830,1750511433663,-151.0,0.00022252,2]
[366847831,1750511433673,-151.0,0.00022252,2]
[366847832,1750511433682,-200.56989288,0.00022252,2]
[366847833,1750511433692,-500.0,0.00022252,2]
[366847834,1750511433702,-151.3394674,0.00022252,2]
[366847835,1750511433711,-151.0,0.00022252,2]
[366847836,1750511433722,-200.02393122,0.00022252,2]
[366847837,1750511433731,-151.63608028,0.00022252,2]
[366847838,1750511433742,-198.0,0.00022252,2]
[366847839,1750511433752,-151.0,0.00022252,2]
[366847840,1750511433762,-198.0,0.0002228,2]
[366847841,1750511433771,-151.0,0.0002228,2]
[366847842,1750511433781,-500.0,0.0002228,2]
[366847843,1750511433791,-2122.0,0.0002228,2]
[366847844,1750511433801,-503.0,0.0002228,2]
[366847845,1750511433811,-151.0,0.0002228,2]
[366847846,1750511433820,-151.0,0.0002228,2]
[366847847,1750511433830,-500.0,0.0002228,2]
[366847848,1750511433840,-151.0,0.0002228,2]
[366847849,1750511433849,-151.0,0.0002228,2]
[366847850,1750511433863,-151.0,0.0002228,7]
[366847851,1750511433877,-151.0,0.0002228,7]
[366847852,1750511433887,-151.0,0.00022307,2]
[366847853,1750511433897,-2122.0,0.00022307,2]
[366847854,1750511433909,-503.0,0.00022307,2]
[366847855,1750511433919,-172.15645267,0.00022307,2]
[366847856,1750511433929,-151.0,0.00022307,2]
[366847857,1750511433940,-302.0,0.00022307,2]
[366847858,1750511433950,-151.0,0.00022307,2]
[366847859,1750511433960,-251.21385254,0.00022307,2]
[366847860,1750511433970,-151.0,0.00022311,7]
[366847861,1750511433979,-151.0,0.00022311,7]
[366847862,1750511433989,-151.0,0.00022311,7]
[366847863,1750511433998,-1423.13165332,0.00022314,7]
[366847864,1750511434009,-3122.05241198,0.00022319,2]
[366847865,1750511434018,-337.18631513,0.00022327,2]
[366847866,1750511434027,-365.6169836,0.00022329,2]
[366847867,1750511434037,-730.8183294,0.00022329,2]
[366847868,1750511434047,-151.0,0.00022329,7]
[366847869,1750511434057,-156.175819,0.00022329,7]
[366847870,1750511434067,-151.0,0.00022329,7]
[366847871,1750511434076,-151.0,0.00022329,7]
[366847872,1750511434086,-151.0,0.00022329,7]
[366847873,1750511434096,-151.492283,0.00022329,7]
[366847874,1750511434105,-151.0,0.00022329,7]
[366847875,1750511434114,-151.0,0.00022329,7]
[366847876,1750511434124,-151.0,0.00022329,7]
[366847877,1750511434133,-151.0,0.00022329,7]
[366847878,1750511434143,-151.0,0.00022335,2]
[366847879,1750511434153,-2122.0,0.00022335,2]
[366847880,1750511434163,-503.0,0.00022335,2]
[366847881,1750511434172,-245.0,0.00022335,2]
[366847882,1750511434184,-164.12103916,0.00022335,2]
[366847883,1750511434194,-402.21210669,0.00022351,2]
[366847884,1750511434204,-151.0,0.00022356,7]
[366847885,1750511434213,-151.0,0.00022356,7]
[366847886,1750511434224,-236.1712393,0.00022362,2]
[366847887,1750511434234,-2122.0,0.00022362,2]
[366847888,1750511434243,-503.0,0.00022362,2]
[366847889,1750511434254,-1000.0,0.00022386,2]
[366847890,1750511434264,-1000.0,0.00022387,2]
[366847891,1750511434274,-3232.0,0.00022388,2]
[366847892,1750511434285,-151.0,0.00022389,7]
[366847893,1750511434294,-174.371323,0.00022389,7]
[366847894,1750511434305,-2122.0,0.00022389,2]
[366847895,1750511434314,-503.0,0.00022389,2]
[366847896,1750511434324,-151.0,0.00022411,7]
[366847897,1750511434334,-151.0,0.00022411,7]
[366847898,1750511434344,-151.0,0.00022411,7]
[366847899,1750511434354,-151.0,0.00022411,7]
[366847900,1750511434363,-151.0,0.00022411,7]
[366847901,1750511434373,-151.0,0.00022411,7]
[366847902,1750511434383,-151.0,0.00022411,7]
[366847903,1750511434392,-151.0,0.00022411,7]
[366847904,1750511434401,-2122.0,0.00022417,2]
[366847905,1750511434411,-503.0,0.00022417,2]
[366847906,1750511434420,-2122.0,0.00022444,2]
[366847907,1750511434430,-503.0,0.00022444,2]
[366847908,1750511434440,-1423.13165332,0.00022452,7]
[366847909,1750511434449,-151.0,0.00022452,7]
[366847910,1750511434460,-151.0,0.00022452,7]
[366847911,1750511434470,-151.0,0.00022452,7]
[366847912,1750511434480,-236.612328,0.00022452,7]
[366847913,1750511434491,-271.261662,0.00022452,7]
[366847914,1750511434502,-236.612328,0.00022452,7]
[366847915,1750511434513,-151.0,0.00022452,7]
[366847916,1750511434525,-151.0,0.00022452,7]
[366847917,1750511434536,-151.0,0.00022452,7]
[366847918,1750511434545,-151.0,0.00022452,7]
[366847919,1750511434555,-151.0,0.00022452,7]
[366847920,1750511434564,-152.549003,0.00022452,7]
[366847921,1750511434574,-652.57533,0.00022452,7]
[366847922,1750511434584,-652.57533,0.00022452,7]
[366847923,1750511434594,-151.0,0.00022452,7]
[366847924,1750511434604,-242.658321,0.00022452,7]
[366847925,1750511434613,-242.658321,0.00022452,7]
[366847926,1750511434622,-502.577893,0.00022452,7]
[366847927,1750511434632,-502.577893,0.00022452,7]
[366847928,1750511434641,-151.0,0.00022466,7]
[366847929,1750511434649,-151.0,0.00022466,7]
[366847930,1750511434657,-151.0,0.00022466,7]
[366847931,1750511434665,-2122.0,0.00022472,2]
[366847932,1750511434674,-503.0,0.00022472,2]
[366847933,1750511434684,-250.0,0.00022475,2]
[366847934,1750511434692,-168.0,0.00022489,2]
[366847935,1750511434700,-2122.0,0.00022499,2]
[366847936,1750511434709,-503.0,0.00022499,2]
[366847937,1750511434719,-3898.20518943,0.000225,5]
[366847938,1750511434729,-3122.05241198,0.00022513,2]
[366847939,1750511434739,-390.77456551,0.00022521,2]
[366847940,1750511434748,-1007.6131257,0.00022521,2]
[366847941,1750511434758,-2122.0,0.00022526,2]
[366847942,1750511434768,-503.0,0.00022526,2]
[366847943,1750511434778,-2122.0,0.00022554,2]
[366847944,1750511434787,-503.0,0.00022554,2]
[366847945,1750511434797,-151.0,0.00022554,7]
[366847946,1750511434806,-187.76399,0.00022558,2]
[366847947,1750511434816,-2122.0,0.00022581,2]
[366847948,1750511434826,-503.0,0.00022581,2]
[366847949,1750511434836,-1423.13165332,0.0002259,7]
[366847950,1750511434845,-151.0,0.0002259,7]
[366847951,1750511434855,-282.063034,0.0002259,7]
[366847952,1750511434868,-151.0,0.0002259,7]
[366847953,1750511434878,-151.0,0.0002259,7]
[366847954,1750511434887,-151.0,0.0002259,7]
[366847955,1750511434897,-154.123757,0.0002259,7]
[366847956,1750511434908,-151.0,0.0002259,7]
[366847957,1750511434917,-151.0,0.0002259,7]
[366847958,1750511434927,-2122.0,0.00022609,2]
[366847959,1750511434937,-503.0,0.00022609,2]
[366847960,1750511434946,-2122.0,0.00022636,2]
[366847961,1750511435033,-503.0,0.00022636,2]
[366847962,1750511435046,-153.42673917,0.00022656,2]
[366847963,1750511435056,-151.0,0.00022656,2]
[366847964,1750511435066,-5000.0,0.00022656,2]
[366847965,1750511435076,-500.0,0.00022656,2]
[366847966,1750511435086,-500.0,0.00022656,2]
[366847967,1750511435096,-159.6806088,0.00022656,2]
[366847968,1750511435106,-4814.58535612,0.00022656,2]
[366847969,1750511435117,-1688.0,0.00022656,2]
[366847970,1750511435127,-500.0,0.00022656,2]
[366847971,1750511435136,-500.0,0.00022656,2]
[366847972,1750511435146,-500.0,0.00022656,2]
[366847973,1750511435155,-500.0,0.00022656,2]
[366847974,1750511435165,-500.0,0.00022656,2]
[366847975,1750511435175,-500.0,0.00022656,2]
[366847976,1750511435185,-500.0,0.00022656,2]
[366847977,1750511435194,-10791.04972502,0.00022656,2]
[366847978,1750511435204,-500.0,0.00022656,2]
[366847979,1750511435213,-500.0,0.00022656,2]
[366847980,1750511435223,-500.0,0.00022656,2]
[366847981,1750511435232,-500.0,0.00022656,2]
[366847982,1750511435241,-500.0,0.00022656,2]
[366847983,1750511435251,-500.0,0.00022656,2]
[366847984,1750511435260,-500.0,0.00022656,2]
[366847985,1750511435270,-500.0,0.00022656,2]
[366847986,1750511435280,-500.0,0.00022656,2]
[366847987,1750511435290,-500.0,0.00022656,2]
[366847988,1750511435300,-500.0,0.00022656,2]
[366847989,1750511435310,-207.4,0.00022656,2]
[366847990,1750511435319,-500.0,0.00022656,2]
[366847991,1750511435328,-500.0,0.00022656,2]
[366847992,1750511435338,-500.0,0.00022656,2]
[366847993,1750511435347,-151.0,0.00022656,7]
[366847994,1750511435357,-161.709455,0.00022656,7]
[366847995,1750511435366,-151.0,0.00022656,7]
[366847996,1750511435375,-151.0,0.00022656,7]
[366847997,1750511435384,-151.0,0.00022656,7]
[366847998,1750511435394,-151.0,0.00022656,7]
[366847999,1750511435404,-151.0,0.00022656,7]
[366848000,1750511435413,-652.57533,0.00022656,7]
[366848001,1750511435423,-652.57533,0.00022656,7]
[366848002,1750511435433,-151.0,0.00022656,7]
[366848003,1750511435442,-151.0,0.00022656,7]
[366848004,1750511435452,-151.0,0.00022656,7]
[366848005,1750511435462,-151.0,0.00022656,7]
[366848006,1750511435471,-253.686675,0.00022656,7]
[366848007,1750511435481,-242.658321,0.00022656,7]
[366848008,1750511435491,-242.658321,0.00022656,7]
[366848009,1750511435500,-151.0,0.00022656,7]
[366848010,1750511435511,-151.0,0.00022656,7]
[366848011,1750511435522,-151.0,0.00022656,7]
[366848012,1750511435532,-151.0,0.00022656,7]
[366848013,1750511435542,-151.0,0.00022656,7]
[366848014,1750511435552,-2122.0,0.00022663,2]
[366848015,1750511435562,-503.0,0.00022663,2]
[366848016,1750511435573,-151.0,0.00022685,7]
[366848017,1750511435583,-2122.0,0.00022691,2]
[366848018,1750511435593,-503.0,0.00022691,2]
[366848019,1750511435603,-151.0,0.00022691,7]
[366848020,1750511435613,-151.0,0.00022695,7]
[366848021,1750511435623,-151.0,0.00022695,7]
[366848022,1750511435633,-151.0,0.00022695,7]
[366848023,1750511435642,-151.0,0.00022695,7]
[366848024,1750511435652,-304.484029,0.00022695,7]
[366848025,1750511435662,-304.484029,0.00022695,7]
[366848026,1750511435671,-304.484029,0.00022695,7]
[366848027,1750511435681,-304.484029,0.00022695,7]
[366848028,1750511435691,-264.90877,0.00022695,7]
[366848029,1750511435700,-153.097932,0.00022695,7]
[366848030,1750511435710,-151.0,0.00022695,7]
[366848031,1750511435720,-151.0,0.00022695,7]
[366848032,1750511435730,-151.0,0.00022695,7]
[366848033,1750511435740,-236.612328,0.00022695,7]
[366848034,1750511435750,-236.612328,0.00022695,7]
[366848035,1750511435760,-236.612328,0.00022695,7]
[366848036,1750511435770,-236.612328,0.00022695,7]
[366848037,1750511435779,-151.0,0.00022695,7]
[366848038,1750511435789,-151.0,0.00022695,7]
[366848039,1750511435800,-151.0,0.00022695,7]
[366848040,1750511435810,-154.286146,0.00022695,7]
[366848041,1750511435822,-154.837119,0.00022695,7]
[366848042,1750511435832,-652.57533,0.00022695,7]
[366848043,1750511435842,-652.57533,0.00022695,7]
[366848044,1750511435851,-160.0,0.00022695,7]
[366848045,1750511435863,-151.0,0.00022695,7]
[366848046,1750511435873,-242.658321,0.00022695,7]
[366848047,1750511435883,-242.658321,0.00022695,7]
[366848048,1750511435893,-502.577893,0.00022695,7]
[366848049,1750511435903,-502.577893,0.00022695,7]
[366848050,1750511435913,-502.577893,0.00022695,7]
[366848051,1750511435923,-502.577893,0.00022695,7]
[366848052,1750511435934,-3000.0,0.000227,2]
[366848053,1750511435945,-1803.742138,0.000227,2]
[366848054,1750511435954,-151.0,0.000227,7]